[Event "Silves Open 2025"]
[Site "Fissul"]
[Date "2025.03.03"]
[Round "1.22"]
[White "Sarabando, Rodrigo Andias"]
[Black "Ruiz Esteban, Ruben"]
[Result "1-0"]
[Annotator "TA"]
[ECO "E18"]
[WhiteElo "2097"]
[BlackElo "1655"]
[PlyCount "89"]
[EventDate "2025.03.03"]
[EventType "swiss"]
[EventCountry "POR"]
[SourceTitle "playchess.com"]
[Source "ChessBase"]
[SourceQuality "1"]
[TimeControl "5400+30"]

{[%evp 17,88,21,49,8,73,89,92,87,83,76,71,92,79,79,62,85,168,175,133,141,127,143,197,158,414,293,370,324,502,209,239,214,347,300,309,145,144,145,156,151,143,140,172,99,176,160,275,268,280,233,295,270,375,400,397,387,363,340,1485,575,5214,5214,4814,4810,5206,5097,4898,4806,5816,5816,29989,29990,29990]} 1. d4 {[%emt 0:01:15]} d5 {[%emt 0:00:21]} 2. c4 {[%emt 0:00:07]} e6 {[%emt 0:00:14][%cal Be7e6,Be6d5,Bd5d4][%mdl 32]} 3. Nf3 {[%emt 0:00:07]} Nf6 {[%emt 0:00:47]} 4. g3 {[%emt 0:00:30]} Be7 {[%emt 0:00:30]} 5. Bg2 {[%emt 0:00:30]} O-O {[%emt 0:00:30]} 6. O-O {[%emt 0:00:30]} b6 {[%emt 0:00:30]} 7. cxd5 {[%emt 0:00:30]} exd5 {[%emt 0:00:30]} 8. Nc3 {[%emt 0:00:30]} Bb7 {[%emt 0:00:30]} 9. Bf4 {[%emt 0:00:30]} c5 {[%emt 0:00:30]} 10. Nh4 $146 {[%emt 0:00:30] E18: Queen's Indian: Old Main Line (4 g3 Bb7 5 Bg2 Be7 6 0-0 0-0 7 Nc3).} ({Predecessor:} 10. dxc5 Bxc5 11. Ne5 Re8 12. e3 h6 13. h4 Nbd7 14. Nxd7 Qxd7 15. Rc1 Rac8 16. Qd3 Red8 17. Be5 Ne4 {1-0 Bok,B (2583)-Drozdowski,K (2450) Titled Tuesday intern op 11th Feb Early blitz 2025 (9)}) 10... Nc6 {[%emt 0:00:30]} (10... Qd7 $11 {keeps the balance.}) 11. dxc5 $16 {[%emt 0:00:30]} bxc5 {[%emt 0:00:30] [#]} (11... d4 12. Nb5 $14) 12. Nf5 $1 {[%emt 0:00:30] White is better.} (12. Bxd5 Nxd5 13. Qxd5 g5 $17) 12... d4 {[%emt 0:00:30]} 13. Nb5 {[%emt 0:00:30] A sharp opening White is much more active.} Na5 {[%emt 0:00:30] aiming for ...Bxg2.} 14. Nxe7+ {[%emt 0:00:30]} Qxe7 {[%emt 0:00:30]} 15. Bd6 {[%emt 0:00:30] This pair of bishops is nice.} Qd7 {[%emt 0:00:30]} 16. Bxb7 {[%emt 0:00:30]} Qxb7 {[%emt 0:00:30] [#]} (16... Nxb7 $16 17. Bxf8 Rxf8) 17. Qa4 $1 $18 {[%emt 0:00:30][%cal Od6f8]} Nc6 {[%emt 0:00:30][%cal Oa7a6]} 18. Bxf8 {[%emt 0:00:30]} Rxf8 {[%emt 0:00:30]} 19. Rac1 {[%emt 0:00:30]} Ne4 {[%emt 0:00:30]} (19... Qb6 $16 20. Na3 d3) 20. f3 {[%emt 0:00:30]} Ne5 $2 {[%emt 0:00:30]} (20... Ng5 $16) 21. Nxd4 {[%emt 0:00:30]} Nd2 {[%emt 0:00:30]} 22. Rfd1 {[%emt 0:00:30]} Qxb2 {[%emt 0:00:30]} (22... cxd4 23. Rxd2 d3) 23. Rc2 {[%emt 0:00:30]} (23. Rxc5 $142 Nec4 24. Rxc4 Nxc4 25. Qxc4) 23... Qxd4+ {[%emt 0:00:30]} 24. Qxd4 {[%emt 0:00:30]} cxd4 {[%emt 0:00:30]} (24... Ndxf3+ {was called for.} 25. exf3 Nxf3+ 26. Kg2 Nxd4 27. Rxc5 Ne6) 25. Rcxd2 {[%emt 0:00:30][%mdl 4096] Endgame KRR-KRN} d3 {[%emt 0:00:30]} 26. Kf2 {[%emt 0:00:30]} (26. exd3 Nxf3+ 27. Kf2 Nxd2 $11) ({Weaker is} 26. f4 Nc4 $16) (26. Re1 $18) 26... Nc4 $16 {[%emt 0:00:30]} 27. Rxd3 {[%emt 0:00:30]} Nb2 {[%emt 0:00:30]} 28. Rb1 {[%emt 0:00:30]} Nxd3+ {[%emt 0:00:30]} 29. exd3 {[%emt 0:00:30] KR-KR. White is a pawn up.} g6 {[%emt 0:00:30][%cal Bg7g6,Bg6g5][%mdl 32]} 30. Ke3 {[%emt 0:00:30]} (30. Rb7 $18) 30... Ra8 {[%emt 0:00:30]} (30... Re8+ $16 31. Kd2 Re5) 31. d4 {[%emt 0:00:30]} f5 {[%emt 0:00:30]} (31... Re8+ $16 32. Kd3 Re6) 32. Rb7 $18 {[%emt 0:00:30]} h6 {[%emt 0:00:30][%cal Bh7h6,Bh6h5,Bh5h4][%mdl 32]} 33. Kd3 {[%emt 0:00:30]} g5 {[%emt 0:00:30]} 34. d5 {[%emt 0:00:30]} h5 {[%emt 0:00:30]} 35. Kd4 {[%emt 0:00:30]} Re8 {[%emt 0:00:30]} 36. Rxa7 {[%emt 0:00:30]} Re2 {[%emt 0:00:30]} 37. d6 {[%emt 0:00:30] Strongly threatening d7.} Rxh2 $2 {[%emt 0:00:30]} (37... Kf8 38. Kd5 Rxh2 39. Ra8+ Kf7) 38. Ke5 {[%emt 0:00:30]} (38. d7 $142 {[%cal Rd7d8]} Rd2+ 39. Kc3 (39. Ke3 Rd5 $18)) 38... h4 {[%emt 0:00:30]} 39. d7 {[%emt 0:00:30][%cal Rd7d8]} Rd2 {[%emt 0:00:30]} 40. Ra8+ {[%emt 0:00:30]} Kg7 {[%emt 0:00:30]} 41. d8=Q {[%emt 0:00:30]} Rxd8 {[%emt 0:00:30]} 42. Rxd8 {[%emt 0:00:30]} Kg6 {[%emt 0:00:30]} 43. g4 {[%emt 0:00:30]} fxg4 {[%emt 0:00:30]} 44. fxg4 {[%emt 0:00:30]} Kf7 {[%emt 0:00:30]} 45. a4 {[%emt 0:00:30] Weighted Error Value: White=0.44/Black=0.99  Loses game:     	---       	Black=1      Missed win:     	White=1     	---        Mistake:       	White=3     	Black=8      Inaccurate:     	---       	Black=2      OK:         	White=10    	Black=8      Best:        	White=1     	Black=3      Strong:       	White=2     	---} 1-0

[Event "Silves Open 2025"]
[Site "Fissul"]
[Date "2025.03.03"]
[Round "1.24"]
[White "Boesel, Alexander"]
[Black "Almeida, Luis Eduardo dos Rei"]
[Result "1-0"]
[Annotator "TA"]
[ECO "C54"]
[WhiteElo "2046"]
[BlackElo "1841"]
[PlyCount "37"]
[EventDate "2025.03.03"]
[EventType "swiss"]
[EventCountry "POR"]
[SourceTitle "playchess.com"]
[Source "ChessBase"]
[SourceQuality "1"]
[TimeControl "5400+30"]

{[%evp 21,37,18,16,15,50,23,26,0,0,-55,16,10,102,93,408,405,407,402]} 1. e4 {[%emt 0:00:01]} e5 {[%emt 0:00:03]} 2. Nf3 {[%emt 0:00:04]} Nc6 {[%emt 0:00:04]} 3. Bc4 {[%emt 0:00:06]} Bc5 {[%emt 0:00:05]} 4. d3 {[%emt 0:00:06]} Nf6 {[%emt 0:00:42]} 5. O-O {[%emt 0:00:12]} O-O {[%emt 0:00:04]} 6. h3 {[%emt 0:00:08]} h6 {[%emt 0:00:07]} 7. Re1 {[%emt 0:00:54]} d6 {[%emt 0:00:10]} 8. c3 {[%emt 0:00:06]} a6 {[%emt 0:00:15]} 9. Bb3 {[%emt 0:00:17]} Ba7 {[%emt 0:00:58]} 10. Nbd2 {[%emt 0:00:18][%cal Bb1d2,Bd2f1,Bf1g3][%mdl 32]} Re8 {[%emt 0:02:25]} 11. Nf1 {[%emt 0:00:56]} Be6 {[%emt 0:03:03]} 12. Bc2 {[%emt 0:05:12] C54: Giuoco Piano: 4 c3 Nf6, main lines with 5 d4 and 5 d3.} Qd7 {[%emt 0:04:43]} 13. Ng3 {[%emt 0:03:11]} d5 {[%emt 0:04:53]} 14. Qe2 {[%emt 0:03:32] White has an edge.} d4 {[%emt 0:02:05]} 15. Nh4 {[%emt 0:01:10]} ({White should try} 15. a3 $11) 15... Rad8 {[%emt 0:03:43]} (15... dxc3 $15 16. bxc3 Ne7) 16. Qf3 $146 {[%emt 0:00:36]} (16. Nhf5 Kh7 17. Kh2 Ne7 18. Qf3 Nxf5 19. Nxf5 Bxf5 20. exf5 Qd5 21. Qxd5 Nxd5 22. Bd2 dxc3 23. bxc3 Bxf2 {0-1 Perez Gormaz,M (2421)-Karthik,V (2516) Titled Tuesday intern op 28th Mar Early blitz 2023 (11)}) 16... Ne7 {[%emt 0:10:11] [#]} (16... Nh7 $1 $11 {remains equal.}) 17. Bxh6 $1 $16 {[%emt 0:01:04][%mdl 512]} gxh6 $2 {[%emt 0:01:30][%mdl 8192]} (17... dxc3 $16 {is a better chance.} 18. bxc3 Bb8) (17... c5 18. Ne2) 18. Qxf6 $18 {[%emt 0:00:47] Intending Nh5 and mate.} Kh7 {[%emt 0:01:09]} 19. Nh5 {[%emt 1:21:20] Weighted Error Value: White=0.23 (precise) /Black=0.73  Loses game:     	---       	Black=1      Mistake:       	White=1     	Black=2      Inaccurate:     	White=2     	Black=1      OK:         	White=3     	Black=1      Best:        	---       	Black=1      Brilliant:      	White=1     	---} (19. Qxe5 Qb5 20. Qxb5 (20. Qxc7 $2 {too greedy.} Bb8 $19) 20... axb5 $16) 1-0

[Event "Silves Open 2025"]
[Site "Fissul"]
[Date "2025.03.03"]
[Round "1.25"]
[White "Goncalves, Nuno Filipe Pocinho"]
[Black "Silverio, Vitor Luis De Jesus"]
[Result "0-1"]
[Annotator "TA"]
[ECO "B06"]
[WhiteElo "1731"]
[BlackElo "2143"]
[PlyCount "96"]
[EventDate "2025.03.03"]
[EventType "swiss"]
[EventCountry "POR"]
[SourceTitle "playchess.com"]
[Source "ChessBase"]
[SourceQuality "1"]
[TimeControl "5400+30"]

{[%evp 9,95,31,48,12,44,38,49,49,54,41,45,49,37,27,42,43,43,-4,-10,-52,-27,-31,4,-8,24,15,18,-40,-46,-175,-165,-152,-170,-166,-166,-172,-162,-191,-194,-197,-190,-193,-196,-198,-195,-205,-197,-194,-204,-282,-285,-280,-133,-950,-928,-1012,-1002,-1187,-1255,-1587,-1299,-29990,-29991,-29996,-29997,-29997,-29991,-29991,-29990,-29990,-29991,-29991,-29992,-29992,-29993,-29993,-29994,-29994,-29995,-29995,-29996,-29996,-29997,-29997,-29998,-29998,-29999,-29999]} 1. d4 {[%emt 1:31:00]} g6 {[%emt 1:31:00]} 2. e4 {[%emt 0:00:30]} Bg7 {[%emt 0:00:30]} 3. Nf3 {[%emt 0:00:30]} d6 {[%emt 0:00:30]} 4. Bf4 {[%emt 0:00:30]} a6 {[%emt 0:00:30]} 5. c3 {[%emt 0:00:30]} b6 $146 {[%emt 0:00:30]} (5... Nd7 6. Bg3 e6 7. Nbd2 Ne7 8. Bd3 b6 9. h4 h6 10. Qe2 Bb7 11. Bh2 d5 12. e5 {0-1 Asmussen,J (1567)-Moeller,M (2193) GER-ch U16 Willingen 2024 (7)}) 6. Qb3 {[%emt 0:00:30] B06: Modern Defence.} e6 {[%emt 0:00:30][%cal Be7e6,Be6e5][%mdl 32]} 7. Nbd2 {[%emt 0:00:30]} Ne7 {[%emt 0:00:30]} 8. Bd3 {[%emt 0:00:30] White is slightly better.} Nd7 {[%emt 0:00:30]} 9. O-O {[%emt 0:00:30]} O-O {[%emt 0:00:30]} 10. Rfe1 {[%emt 0:00:30]} e5 {[%emt 0:00:30]} 11. Bg3 {[%emt 0:00:30]} Nc6 {[%emt 0:00:30][%cal Re5d4]} 12. Bh4 {[%emt 0:00:30]} Qe8 {[%emt 0:00:30]} 13. Qa4 {[%emt 0:00:30]} (13. Rac1 $14) 13... Bb7 $11 {[%emt 0:00:30]} 14. Rab1 {[%emt 0:00:30]} b5 {[%emt 0:00:30]} 15. Qc2 {[%emt 0:00:30]} Rc8 {[%emt 0:00:30]} 16. d5 {[%emt 0:00:30]} Ne7 {[%emt 0:00:30]} 17. a4 {[%emt 0:00:30]} c6 {[%emt 0:00:30]} 18. Bxe7 {[%emt 0:00:30]} (18. dxc6 $11 Nxc6 (18... Bxc6 19. Ra1 $11) 19. Bf1 (19. axb5 $2 Nb4 $19)) 18... Qxe7 $15 {[%emt 0:00:30]} 19. Qb3 {[%emt 0:00:30]} (19. dxc6 $15 Bxc6 20. axb5 axb5 21. g3) 19... Nc5 $19 {[%emt 0:00:30][%csl LRa4,LRb3,LRd3]} 20. Qc2 {[%emt 0:00:30]} Nxa4 {[%emt 0:00:30] Black is more active.} 21. dxc6 {[%emt 0:00:30]} Bxc6 {[%emt 0:00:30]} 22. c4 {[%emt 0:00:30]} Bd7 {[%emt 0:00:30]} 23. b3 {[%emt 0:00:30]} Nc5 {[%emt 0:00:30]} 24. Ra1 {[%emt 0:00:30]} b4 {[%emt 0:00:30]} 25. Nf1 {[%emt 0:00:30]} Bh6 {[%emt 0:00:30]} 26. Ne3 {[%emt 0:00:30]} Bxe3 {[%emt 0:00:30]} 27. Rxe3 {[%emt 0:00:30]} Bc6 {[%emt 0:00:30]} 28. Ne1 {[%emt 0:00:30]} Qb7 {[%emt 0:00:30]} 29. f3 {[%emt 0:00:30]} Qb6 {[%emt 0:00:30][%cal Oc5b3] [#]} 30. Kf2 {[%emt 0:00:30]} f5 {[%emt 0:00:30]} (30... a5 $19 {[%cal Oa5a4] and Black stays clearly on top. and ...a4! would now be decisive} 31. Rb1 Rcd8 (31... a4 $2 32. bxa4 Ra8 33. Qd2 $19)) 31. Ke2 $2 {[%emt 0:00:30][%mdl 8192] Now White is beyond hope.} (31. exf5 $17 h6 32. g4) 31... f4 {[%emt 0:00:30]} 32. Qb1 {[%emt 0:00:30] White is weak on the dark squares} fxe3 {[%emt 0:00:30]} 33. Bc2 {[%emt 0:00:30]} Ne6 {[%emt 0:00:30]} 34. Nd3 {[%emt 0:00:30]} Qd4 {[%emt 0:00:30]} 35. g3 {[%emt 0:00:30] [#] Against Nf4+} Rxf3 $1 {[%emt 0:00:30] Black mates.} 36. Kxf3 {[%emt 0:00:30]} (36. Qf1 Qxe4) 36... Qxe4+ {[%emt 0:00:30]} 37. Ke2 {[%emt 0:00:30]} Nd4+ {[%emt 0:00:30]} 38. Kd1 {[%emt 0:00:30]} Qh1+ {[%emt 0:00:30]} 39. Ne1 {[%emt 0:00:30]} Bf3+ {[%emt 0:00:30]} 40. Kc1 {[%emt 0:00:30]} Qxe1+ {[%emt 0:00:30]} 41. Kb2 {[%emt 0:00:30]} Qc3+ {[%emt 0:00:30]} 42. Ka2 {[%emt 0:00:30]} Rc5 {[%emt 0:00:30][%cal Rc5a5]} 43. Qb2 {[%emt 0:00:30]} Ra5+ {[%emt 0:00:30]} 44. Kb1 {[%emt 0:00:30]} Qe1+ {[%emt 0:00:30]} 45. Qc1 {[%emt 0:00:30]} Rxa1+ {[%emt 0:00:30]} 46. Kxa1 {[%emt 0:00:30]} Qxc1+ {[%emt 0:00:30]} 47. Ka2 {[%emt 0:00:30]} Nxc2 {[%emt 0:00:30][%csl Gc2][%cal Rc1a1]} 48. h3 {[%emt 0:00:30]} Qa1# {[%emt 0:00:30] Weighted Error Value: White=0.84/Black=0.26 (precise)   Loses game:     	White=1     	---        Mistake:       	White=3     	Black=1      Inaccurate:     	White=2     	Black=3      OK:         	White=9     	Black=14     Best:        	---       	Black=1} 0-1

[Event "Silves Open 2025"]
[Site "Fissul"]
[Date "2025.03.03"]
[Round "1.26"]
[White "Esteves, Goncalo Maria Franco"]
[Black "Tacuchian, Marcelo Oliveira"]
[Result "1-0"]
[Annotator "TA"]
[ECO "A39"]
[WhiteElo "1962"]
[BlackElo "1620"]
[PlyCount "73"]
[EventDate "2025.03.03"]
[EventType "swiss"]
[EventCountry "POR"]
[SourceTitle "playchess.com"]
[Source "ChessBase"]
[SourceQuality "1"]
[TimeControl "5400+30"]

{[%evp 16,73,58,55,60,27,96,88,97,91,153,120,146,158,207,209,206,195,183,110,227,226,260,117,111,128,192,156,199,68,58,62,191,248,240,250,229,212,172,168,181,85,83,85,146,153,450,236,989,845,1327,1260,1264,1013,945,693,29979,29977,29995,29996]} 1. c4 {[%emt 0:00:08]} c5 {[%emt 0:00:19]} 2. Nc3 {[%emt 0:00:14]} Nf6 {[%emt 0:00:16]} 3. g3 {[%emt 0:00:12]} Nc6 {[%emt 0:00:44]} 4. Bg2 {[%emt 0:00:12]} g6 {[%emt 0:00:11]} 5. Nf3 {[%emt 0:00:08]} Bg7 {[%emt 0:00:26]} 6. O-O {[%emt 0:00:13]} O-O {[%emt 0:00:58]} 7. d4 {[%emt 0:00:05]} cxd4 {[%emt 0:00:30]} 8. Nxd4 {[%emt 0:01:59]} a6 {[%emt 0:00:54]} 9. c5 {[%emt 0:01:39]} Ng4 {[%emt 0:05:39] A39: Symmetrical English vs ...g6: 4 Bg2 Bg7 5 Nf3 Nf6 6 0-0 0-0 7 d4.} 10. Nb3 {[%emt 0:02:01]} Bxc3 {[%emt 0:07:25]} (10... a5 $11) 11. bxc3 $16 {[%emt 0:00:24]} Qc7 $146 {[%emt 0:00:50] White is better.} (11... Nge5 12. e4 b5 13. cxb6 Qxb6 14. Be3 Qc7 15. f4 Nc4 16. Bf2 d6 17. Qe2 Nb6 {1-0 Jurek,J (2206)-Jakl,A (1986) Pilsen Region-chT 2223 2022 (5.3)}) 12. h3 {[%emt 0:00:17]} Nf6 {[%emt 0:00:51] A sharp opening} (12... Nge5 $142) 13. Bh6 {[%emt 0:06:15]} Rd8 {[%emt 0:00:56]} 14. Bf4 {[%emt 0:00:36] A strong pair of Bishops.} e5 {[%emt 0:00:40] Black is weak on the dark squares} (14... d6 $16 15. cxd6 exd6) 15. Bg5 $18 {[%emt 0:00:11]} Kg7 {[%emt 0:00:41]} 16. f4 {[%emt 0:01:10][%cal Bf2f4,Bf4e5,Be5f6][%mdl 32] [#]} h6 {[%emt 0:15:39]} 17. Bh4 {[%emt 0:02:49]} (17. Bxf6+ $18 Kxf6 18. fxe5+ Kg7 19. Qd6 Qxd6 20. exd6) 17... Re8 {[%emt 0:01:35]} (17... exf4 $16 18. Bxf6+ (18. Rxf4 g5 $15) (18. gxf4 d5 $11) 18... Kxf6) 18. fxe5 {[%emt 0:03:55]} Ng8 {[%emt 0:02:49]} 19. Bf6+ {[%emt 0:16:30]} (19. Qd6 Qxd6 20. exd6 g5 $11) (19. Bd5 $18 Nxe5 20. g4) 19... Nxf6 $16 {[%emt 0:00:47]} 20. exf6+ {[%emt 0:00:09]} (20. Rxf6 $6 Qxe5 21. Rf3 Rb8 $11) 20... Kg8 {[%emt 0:01:51]} (20... Kh7 $16) 21. Rf4 $18 {[%emt 0:02:11]} Re3 {[%emt 0:05:13]} 22. Qd6 {[%emt 0:53:49]} (22. Qd2 $18 Rxg3 23. Re4) 22... Qxd6 $14 {[%emt 0:08:26]} 23. cxd6 {[%emt 0:00:05]} Rxe2 {[%emt 0:00:48]} (23... Rxg3 $14 24. Re4 Kf8) 24. Re4 $18 {[%emt 0:03:00]} Rxe4 {[%emt 0:05:37]} 25. Bxe4 {[%emt 0:00:05]} Nd8 {[%emt 0:00:42]} 26. Nc5 {[%emt 0:01:06] Na4 is the strong threat.} Rb8 {[%emt 0:00:31]} 27. Rb1 $36 {[%emt 0:00:05][%mdl 2048] White is on the roll.} b6 {[%cal Bb7b6,Bb6b5][%mdl 32]} 28. Na4 {[%emt 0:00:26]} (28. Kf2 $18 {has better winning chances.}) 28... b5 $16 29. Nc5 {[%emt 0:05:06] White is much more active.} Ne6 {[%emt 0:39:42]} ({Better is} 29... Rb6) 30. Nxe6 {[%emt 0:00:00]} dxe6 {[%emt 0:00:00][%mdl 4096] Endgame KRB-KRB} (30... fxe6 $16 {might work better.} 31. Bxg6 Bb7) 31. Bc6 {[%emt 0:01:00]} (31. c4 $142) 31... Bb7 $2 {[%emt 0:00:00]} (31... Rb6 32. d7 Bxd7 33. Bxd7 Rd6) 32. Bxb7 $18 {[%emt 0:00:00]} Rxb7 {[%emt 0:00:00]} 33. c4 {[%emt 0:01:00][%cal Bc3c4,Bc4c5,Bc5c6][%mdl 32]} Kf8 {[%emt 0:00:00]} 34. c5 {[%emt 0:00:00] Threatening mate with c6.} Ke8 {[%emt 0:00:00]} 35. c6 {[%emt 0:00:00]} Rb6 {[%emt 0:00:00] [#]} 36. Rc1 {[%emt 0:00:00]} Rb8 {[%emt 0:00:00]} 37. d7+ {[%emt 0:00:00] Weighted Error Value: White=0.39/Black=0.79  Loses game:     	---       	Black=1      Mistake:       	White=5     	Black=8      Inaccurate:     	White=1     	---        OK:         	White=6     	Black=5      Best:        	White=4     	Black=3} 1-0

[Event "Silves Open 2025"]
[Site "Fissul"]
[Date "2025.03.03"]
[Round "1.28"]
[White "Sanchez Guirado, Francisco"]
[Black "Machado, Manuel Antonio Ribei"]
[Result "1-0"]
[Annotator "TA"]
[ECO "A36"]
[WhiteElo "2286"]
[BlackElo "1796"]
[PlyCount "77"]
[EventDate "2025.03.03"]
[EventType "swiss"]
[EventCountry "POR"]
[SourceTitle "playchess.com"]
[Source "ChessBase"]
[SourceQuality "1"]
[TimeControl "5400+30"]

{[%evp 14,77,3,20,13,-23,53,38,55,66,78,93,136,139,392,198,463,398,468,464,475,483,516,530,651,651,642,636,796,860,797,854,908,897,911,877,902,966,961,954,891,964,963,935,930,928,1472,1464,1671,1656,2993,3007,2993,2903,29987,29988,29988,29989,29990,29991,29993,29994,29994,29995,29995,1451]} 1. c4 {[%emt 0:00:10]} c5 {[%emt 0:01:53]} 2. Nc3 {[%emt 0:00:11]} Nc6 {[%emt 0:00:11]} 3. g3 {[%emt 0:00:26]} g6 {[%emt 0:00:40]} 4. Bg2 {[%emt 0:00:09]} Bg7 {[%emt 0:00:27]} 5. a3 {[%emt 0:00:41]} Nf6 {[%emt 0:00:48]} 6. Rb1 {[%emt 0:00:24]} O-O {[%emt 0:01:21]} 7. b4 {[%emt 0:00:26]} cxb4 {[%emt 0:02:45]} 8. axb4 {[%emt 0:00:07]} e6 {[%emt 0:01:51] A36: Symmetrical English vs ...g6: 4 Bg2 Bg7.} 9. Nf3 {[%emt 0:11:58]} d6 {[%emt 0:04:20]} (9... d5 $11) 10. O-O $14 {[%emt 0:01:32]} Re8 $146 {[%emt 0:05:55] White is slightly better.} (10... d5 11. d3 h6 12. Ba3 Re8 13. Qc1 a6 14. b5 Ne7 15. Bc5 b6 16. Bd4 Nf5 17. Bxf6 Bxf6 {1-0 Szczurek,K (2078)-Grunert,F (1750) EU Union-ch U14 2017 (1)}) 11. d4 {[%emt 0:05:38]} Qe7 {[%emt 0:08:56]} 12. b5 {[%emt 0:06:52]} (12. e4 {looks sharper.} e5 13. Bg5 Bg4 14. Nd5) 12... Nb8 {[%emt 0:06:57]} 13. Ba3 {[%emt 0:02:16] White is more active.} Nfd7 $2 {[%emt 0:04:54][%mdl 8192] This costs Black the game.} (13... a6 $16 14. Qa4 h6) 14. e4 {[%emt 0:03:30]} (14. Ne4 $142) 14... Nc5 $2 {[%emt 0:01:31]} (14... Nb6) 15. Qd2 {[%emt 0:01:44]} Ncd7 {[%emt 0:04:03] [#]} 16. e5 $1 {[%emt 0:00:32][%mdl 512]} Nb6 {[%emt 0:03:05]} 17. exd6 {[%emt 0:01:37]} ({Weaker is} 17. Bxd6 Nxc4 18. Bxe7 Nxd2 $18) 17... Qd7 {[%emt 0:00:12] Black is weak on the dark squares} 18. Qd3 {[%emt 0:00:50]} Bf8 {[%emt 0:01:42]} 19. Ne5 {[%emt 0:02:11]} Qd8 {[%emt 0:00:07]} 20. c5 {[%emt 0:00:28][%cal Bc4c5,Bc5c6][%mdl 32]} N6d7 {[%emt 0:02:11]} 21. c6 {[%emt 0:03:10]} Nxe5 {[%emt 0:03:23]} 22. dxe5 {[%emt 0:00:09]} bxc6 {[%emt 0:01:47]} 23. bxc6 {[%emt 0:00:42]} Ba6 {[%emt 0:00:59]} 24. Nb5 {[%emt 0:03:11]} Qa5 {[%emt 0:01:50]} 25. Rfc1 {[%emt 0:03:31][%cal Bf1c1,Bc1c5,Bc5c6,Bc6a6][%mdl 32]} Bh6 {[%emt 0:05:03]} 26. Rc5 {[%emt 0:01:51]} Rd8 {[%emt 0:10:03]} 27. c7 {[%emt 0:02:21]} Nd7 {[%emt 0:00:58]} 28. cxd8=Q+ {[%emt 0:00:54]} Rxd8 {[%emt 0:01:02][%cal Ba8d8,Bd8c8,Bc8c3,Bc3a3][%mdl 32]} 29. Qc3 {[%emt 0:02:02]} Qb6 {[%emt 0:02:01]} 30. Rc6 {[%emt 0:00:30]} Qb7 {[%emt 0:01:48]} 31. Qa5 {[%emt 0:00:39]} Rc8 {[%emt 0:02:17]} 32. Rxa6 {[%emt 0:00:25]} Qb8 {[%emt 0:00:45]} 33. Nc3 {[%emt 0:00:49]} Nb6 {[%emt 0:00:55]} 34. Rbxb6 {[%emt 0:00:17] White mates.} axb6 {[%emt 0:00:50]} 35. Rxb6 {[%emt 0:00:10]} Qxb6 {[%emt 0:00:15]} 36. Qxb6 {[%emt 0:00:08]} Rxc3 {[%emt 0:00:22]} 37. d7 {[%emt 0:00:15]} Rxa3 {[%emt 0:00:06]} 38. d8=Q+ {[%emt 0:00:22]} Bf8 {[%emt 0:21:17] [#]} 39. Qxf8+ {[%emt 0:00:13] Weighted Error Value: White=0.12 (very precise) /Black=0.94  Loses game:     	---       	Black=1      Mistake:       	White=1     	Black=2      Inaccurate:     	White=1     	Black=1      OK:         	White=5     	Black=1} 1-0